[Event "*** Titled Tuesday 3|2 Blitz"]
[Site "Chess.com"]
[Date "2016.10.04"]
[Round "2"]
[White "Kawhi_Leonard2"]
[Black "SwiftyMcBishop"]
[Result "1-0"]
[WhiteElo "2003"]
[BlackElo "2065"]
[TimeControl "180+2"]
[EndTime "17:21:12 PDT"]
[Termination "Kawhi_Leonard2 won by resignation"]

1. e4 {[%clk 0:03:01.9]} 1... c5 {[%clk 0:03:00]} 2. Nf3 {[%clk 0:03:02.8]} 2...
d6 {[%clk 0:03:00.8]} 3. d4 {[%clk 0:03:04.3]} 3... cxd4 {[%clk 0:03:01]} 4.
Nxd4 {[%clk 0:03:06.2]} 4... Nf6 {[%clk 0:03:02.1]} 5. Nc3 {[%clk 0:03:07.8]}
5... a6 {[%clk 0:03:03.3]} 6. Be2 {[%clk 0:03:08.7]} 6... e5 {[%clk 0:03:01.8]}
7. Nb3 {[%clk 0:03:09.5]} 7... Be6 {[%clk 0:03:02.2]} 8. Qd3 {[%clk 0:03:07.1]}
8... Nbd7 {[%clk 0:02:54.9]} 9. Nd5 {[%clk 0:03:07.2]} 9... Bxd5 {[%clk
0:02:53.3]} 10. exd5 {[%clk 0:03:07.7]} 10... Rc8 {[%clk 0:02:54.4]} 11. c4
{[%clk 0:03:07.7]} 11... Be7 {[%clk 0:02:30]} 12. O-O {[%clk 0:03:08.2]} 12...
Nc5 {[%clk 0:02:24.9]} 13. Nxc5 {[%clk 0:03:07.7]} 13... Rxc5 {[%clk 0:02:26.4]}
14. Bf3 {[%clk 0:02:53.7]} 14... O-O {[%clk 0:02:24.7]} 15. Re1 {[%clk
0:02:49.4]} 15... Re8 {[%clk 0:02:11.2]} 16. Bd2 {[%clk 0:02:39.9]} 16... b5
{[%clk 0:02:06.1]} 17. b3 {[%clk 0:02:35.8]} 17... bxc4 {[%clk 0:02:01.7]} 18.
bxc4 {[%clk 0:02:36.1]} 18... Qc8 {[%clk 0:01:54]} 19. Rac1 {[%clk 0:02:25.8]}
19... h6 {[%clk 0:01:24.2]} 20. Be3 {[%clk 0:02:06]} 20... Ra5 {[%clk
0:00:59.2]} 21. Qb3 {[%clk 0:01:57.6]} 21... Qd7 {[%clk 0:00:38.1]} 22. Bb6
{[%clk 0:01:48.3]} 22... Rb8 {[%clk 0:00:33.1]} 23. Bxa5 {[%clk 0:01:48.6]}
23... Rxb3 {[%clk 0:00:30.7]} 24. axb3 {[%clk 0:01:49.5]} 24... Qb7 {[%clk
0:00:28.6]} 25. b4 {[%clk 0:01:42.1]} 25... Qd7 {[%clk 0:00:27.7]} 26. c5 {[%clk
0:01:35.3]} 26... dxc5 {[%clk 0:00:20.2]} 27. bxc5 {[%clk 0:01:36.1]} 27... Nxd5
{[%clk 0:00:10.7]} 28. c6 {[%clk 0:01:31.9]} 28... Qe6 {[%clk 0:00:07.6]} 29.
Bxd5 {[%clk 0:01:32.3]} 29... Qxd5 {[%clk 0:00:08.1]} 30. c7 {[%clk 0:01:33.3]}
30... Qxa5 {[%clk 0:00:08.9]} 31. c8=Q+ {[%clk 0:01:34.2]} 31... Kh7 {[%clk
0:00:10.3]} 32. Qf5+ {[%clk 0:01:34.6]} 32... Kg8 {[%clk 0:00:09.6]} 33. Rc8+
{[%clk 0:01:33.3]} 33... Bf8 {[%clk 0:00:10.5]} 34. Rec1 {[%clk 0:01:33.4]}
34... Qb4 {[%clk 0:00:11.3]} 35. Qxe5 {[%clk 0:01:22.4]} 35... a5 {[%clk
0:00:08.3]} 36. Qe8 {[%clk 0:01:19.6]} 36... a4 {[%clk 0:00:06.7]} 37. Qxf8+
{[%clk 0:01:20.5]} 37... Qxf8 {[%clk 0:00:08.6]} 38. Rxf8+ {[%clk 0:01:22.1]}
38... Kxf8 {[%clk 0:00:10.5]} 39. Ra1 {[%clk 0:01:22.8]} 39... Ke7 {[%clk
0:00:12.4]} 40. Rxa4 {[%clk 0:01:23.4]} 40... Kf6 {[%clk 0:00:14.3]} 41. g3
{[%clk 0:01:23.9]} 41... Kg6 {[%clk 0:00:16.2]} 42. Kg2 {[%clk 0:01:25.3]} 42...
f6 {[%clk 0:00:14.9]} 43. Ra5 {[%clk 0:01:26.3]} 43... Kf7 {[%clk 0:00:16]} 44.
f4 {[%clk 0:01:27.8]} 44... Kg8 {[%clk 0:00:16.2]} 45. Kf3 {[%clk 0:01:29.2]}
45... Kh7 {[%clk 0:00:18.1]} 46. Kg4 {[%clk 0:01:30.1]} 46... Kg6 {[%clk
0:00:19]} 47. h4 {[%clk 0:01:30.3]} 47... Kf7 {[%clk 0:00:20.2]} 48. h5 {[%clk
0:01:30.9]} 48... Kg8 {[%clk 0:00:21.2]} 49. Ra7 {[%clk 0:01:31.1]} 49... Kh7
{[%clk 0:00:22.3]} 50. Kf5 {[%clk 0:01:32.1]} 50... Kg8 {[%clk 0:00:18.7]} 51.
Kg6 {[%clk 0:01:33.1]} 51... Kf8 {[%clk 0:00:20]} 52. Rxg7 {[%clk 0:01:32.6]}
52... f5 {[%clk 0:00:19.5]} 53. Ra7 {[%clk 0:01:29.4]} 53... Ke8 {[%clk
0:00:18.6]} 54. Kxh6 {[%clk 0:01:29.4]} 54... Kd8 {[%clk 0:00:18.2]} 55. Kg6
{[%clk 0:01:29.9]} 55... Kc8 {[%clk 0:00:19.4]} 56. Rf7 {[%clk 0:01:30.3]} 56...
Kd8 {[%clk 0:00:20.5]} 57. h6 {[%clk 0:01:31.3]} 1-0

[Event "*** Titled Tuesday 3|2 Blitz"]
[Site "Chess.com"]
[Date "2016.10.04"]
[Round "2"]
[White "ka1ser64"]
[Black "GianmarcoVaR"]
[Result "0-1"]
[WhiteElo "2261"]
[BlackElo "2382"]
[TimeControl "180+2"]
[EndTime "17:21:38 PDT"]
[Termination "GianmarcoVaR won by resignation"]

1. d4 {[%clk 0:03:02]} 1... Nf6 {[%clk 0:03:00.3]} 2. c4 {[%clk 0:03:03.1]} 2...
e6 {[%clk 0:03:01.5]} 3. Nc3 {[%clk 0:03:04.6]} 3... Bb4 {[%clk 0:03:02.8]} 4.
e3 {[%clk 0:03:06.3]} 4... O-O {[%clk 0:03:03.3]} 5. Ne2 {[%clk 0:03:07.9]} 5...
d5 {[%clk 0:02:59.5]} 6. a3 {[%clk 0:03:09.2]} 6... Bd6 {[%clk 0:03:00.6]} 7.
Nf4 {[%clk 0:03:08.9]} 7... c6 {[%clk 0:02:49.6]} 8. Be2 {[%clk 0:03:04.4]} 8...
Bxf4 {[%clk 0:02:47.9]} 9. exf4 {[%clk 0:03:05.4]} 9... dxc4 {[%clk 0:02:49.8]}
10. Bxc4 {[%clk 0:03:06.2]} 10... b6 {[%clk 0:02:43.8]} 11. O-O {[%clk
0:03:05.9]} 11... Ba6 {[%clk 0:02:44.1]} 12. Qe2 {[%clk 0:02:57.3]} 12... Bxc4
{[%clk 0:02:38.4]} 13. Qxc4 {[%clk 0:02:59.2]} 13... Qd6 {[%clk 0:02:39.2]} 14.
Be3 {[%clk 0:02:54.1]} 14... Nbd7 {[%clk 0:02:40.1]} 15. Rac1 {[%clk 0:02:54.8]}
15... Rac8 {[%clk 0:02:38.7]} 16. Rfd1 {[%clk 0:02:55.7]} 16... Nd5 {[%clk
0:02:37.7]} 17. Ne4 {[%clk 0:02:55]} 17... Qe7 {[%clk 0:02:37.9]} 18. Qa6 {[%clk
0:02:52.9]} 18... N7f6 {[%clk 0:02:20.3]} 19. Nd2 {[%clk 0:02:14.7]} 19... Rfd8
{[%clk 0:01:39.6]} 20. Nc4 {[%clk 0:02:14.1]} 20... Rc7 {[%clk 0:00:51.9]} 21.
Ne5 {[%clk 0:02:13.2]} 21... Rdc8 {[%clk 0:00:53.3]} 22. b4 {[%clk 0:02:12.4]}
22... Ne4 {[%clk 0:00:50.4]} 23. Rc2 {[%clk 0:02:00.9]} 23... Nd6 {[%clk
0:00:48.5]} 24. Rdc1 {[%clk 0:01:58.8]} 24... Qe8 {[%clk 0:00:46.2]} 25. Qa4
{[%clk 0:01:47.6]} 25... Nb5 {[%clk 0:00:43.9]} 26. Qb3 {[%clk 0:01:28.4]} 26...
f6 {[%clk 0:00:41.5]} 27. Nc4 {[%clk 0:01:25.2]} 27... Qd7 {[%clk 0:00:35.1]}
28. a4 {[%clk 0:01:25.9]} 28... Nd6 {[%clk 0:00:36.3]} 29. Nb2 {[%clk
0:01:25.3]} 29... Nf5 {[%clk 0:00:36]} 30. h3 {[%clk 0:01:18.8]} 30... h5 {[%clk
0:00:29.7]} 31. Kh2 {[%clk 0:01:13.7]} 31... h4 {[%clk 0:00:29.8]} 32. Rc4
{[%clk 0:01:08.8]} 32... Qd6 {[%clk 0:00:29.7]} 33. a5 {[%clk 0:01:03.5]} 33...
Nxf4 {[%clk 0:00:27.9]} 34. Kh1 {[%clk 0:00:56.9]} 34... Nd5 {[%clk 0:00:24.1]}
35. axb6 {[%clk 0:00:53.6]} 35... axb6 {[%clk 0:00:24.8]} 36. Bd2 {[%clk
0:00:42]} 36... Kf7 {[%clk 0:00:24.3]} 37. Qf3 {[%clk 0:00:41.9]} 37... Nde7
{[%clk 0:00:20.5]} 38. Bf4 {[%clk 0:00:40]} 38... Qd5 {[%clk 0:00:18.2]} 39.
Bxc7 {[%clk 0:00:39.6]} 39... Qxf3 {[%clk 0:00:18.9]} 40. gxf3 {[%clk
0:00:41.5]} 40... Rxc7 {[%clk 0:00:20.3]} 41. b5 {[%clk 0:00:43]} 41... Nd6
{[%clk 0:00:21.5]} 42. Rxc6 {[%clk 0:00:41]} 42... Nxc6 {[%clk 0:00:21.3]} 43.
Rxc6 {[%clk 0:00:42.9]} 43... Nxb5 {[%clk 0:00:20.4]} 44. Rxb6 {[%clk
0:00:42.7]} 44... Nxd4 {[%clk 0:00:21.5]} 45. Kg2 {[%clk 0:00:42.9]} 45... Ne2
{[%clk 0:00:18]} 46. Nd3 {[%clk 0:00:42.9]} 46... Rc3 {[%clk 0:00:16.1]} 47. Rb2
{[%clk 0:00:42.1]} 47... Nd4 {[%clk 0:00:10.7]} 48. Rd2 {[%clk 0:00:38.8]} 48...
e5 {[%clk 0:00:10.8]} 49. Ne1 {[%clk 0:00:37.4]} 49... Ne6 {[%clk 0:00:10]} 50.
Nd3 {[%clk 0:00:37.5]} 50... Rxd3 {[%clk 0:00:10.6]} 0-1

[Event "*** Titled Tuesday 3|2 Blitz"]
[Site "Chess.com"]
[Date "2016.10.04"]
[Round "2"]
[White "kaitlyninc"]
[Black "michaelk123"]
[Result "0-1"]
[WhiteElo "1753"]
[BlackElo "2235"]
[TimeControl "180+2"]
[EndTime "17:21:41 PDT"]
[Termination "michaelk123 won by checkmate"]

1. d4 {[%clk 0:03:01.9]} 1... Nf6 {[%clk 0:03:00]} 2. Bf4 {[%clk 0:03:02.9]}
2... g6 {[%clk 0:02:58.9]} 3. e3 {[%clk 0:03:04]} 3... Bg7 {[%clk 0:02:59.9]} 4.
Nf3 {[%clk 0:03:05.1]} 4... O-O {[%clk 0:03:00.6]} 5. c3 {[%clk 0:03:06]} 5...
d6 {[%clk 0:02:57.7]} 6. Nbd2 {[%clk 0:03:07]} 6... c5 {[%clk 0:02:56.2]} 7. Bd3
{[%clk 0:03:07.6]} 7... Qb6 {[%clk 0:02:55.7]} 8. Qc2 {[%clk 0:03:06.9]} 8...
Be6 {[%clk 0:02:54.5]} 9. Ng5 {[%clk 0:03:02.6]} 9... Bc8 {[%clk 0:02:16.6]} 10.
Nge4 {[%clk 0:02:47.8]} 10... Nbd7 {[%clk 0:02:09.7]} 11. O-O {[%clk 0:02:29]}
11... Nd5 {[%clk 0:01:44.6]} 12. Bg3 {[%clk 0:02:18.2]} 12... N7f6 {[%clk
0:01:42.4]} 13. a3 {[%clk 0:02:07.5]} 13... cxd4 {[%clk 0:01:34.3]} 14. cxd4
{[%clk 0:02:03.7]} 14... Bd7 {[%clk 0:01:19.8]} 15. Rac1 {[%clk 0:01:50.1]}
15... Rac8 {[%clk 0:01:18.4]} 16. Qb1 {[%clk 0:01:51.2]} 16... Bb5 {[%clk
0:01:13.1]} 17. Nxf6+ {[%clk 0:01:28.8]} 17... Nxf6 {[%clk 0:01:09.5]} 18. Bxb5
{[%clk 0:01:09.6]} 18... Qxb5 {[%clk 0:01:11.4]} 19. Qa2 {[%clk 0:00:57.9]}
19... Qd3 {[%clk 0:01:03.9]} 20. Nf3 {[%clk 0:00:51.3]} 20... Ne4 {[%clk
0:00:59.9]} 21. Rfd1 {[%clk 0:00:41.4]} 21... Qb5 {[%clk 0:00:29.1]} 22. Qb1
{[%clk 0:00:24.2]} 22... Nxg3 {[%clk 0:00:21.6]} 23. hxg3 {[%clk 0:00:26.1]}
23... Bf6 {[%clk 0:00:22.6]} 24. Rxc8 {[%clk 0:00:23.3]} 24... Rxc8 {[%clk
0:00:24.5]} 25. Nd2 {[%clk 0:00:21.7]} 25... d5 {[%clk 0:00:20.1]} 26. Rc1
{[%clk 0:00:22.1]} 26... Rc6 {[%clk 0:00:19]} 27. Nf3 {[%clk 0:00:20.5]} 27...
Kg7 {[%clk 0:00:15.7]} 28. Rxc6 {[%clk 0:00:20]} 28... Qxc6 {[%clk 0:00:13.3]}
29. Kf1 {[%clk 0:00:20.4]} 29... Qc4+ {[%clk 0:00:14]} 30. Ke1 {[%clk
0:00:20.3]} 30... e6 {[%clk 0:00:12.2]} 31. Nd2 {[%clk 0:00:21.5]} 31... Qb5
{[%clk 0:00:12.3]} 32. Qc2 {[%clk 0:00:22.4]} 32... Bd8 {[%clk 0:00:12.4]} 33.
f4 {[%clk 0:00:23.5]} 33... Ba5 {[%clk 0:00:12.3]} 34. b4 {[%clk 0:00:24.5]}
34... Bb6 {[%clk 0:00:11.5]} 35. Kf2 {[%clk 0:00:24.6]} 35... a5 {[%clk
0:00:12.1]} 36. Qc8 {[%clk 0:00:20.1]} 36... axb4 {[%clk 0:00:11.9]} 37. axb4
{[%clk 0:00:21.5]} 37... Qxb4 {[%clk 0:00:13.1]} 38. Nf3 {[%clk 0:00:21.9]}
38... Qb2+ {[%clk 0:00:13.4]} 39. Kg1 {[%clk 0:00:23]} 39... Qe2 {[%clk
0:00:09.6]} 40. Qxb7 {[%clk 0:00:20.5]} 40... Qxe3+ {[%clk 0:00:10.7]} 41. Kh2
{[%clk 0:00:22.1]} 41... Bxd4 {[%clk 0:00:08.8]} 42. Nxd4 {[%clk 0:00:21.9]}
42... Qxd4 {[%clk 0:00:09.8]} 43. Qe7 {[%clk 0:00:23.8]} 43... Qf6 {[%clk
0:00:10.4]} 44. Qa7 {[%clk 0:00:23.6]} 44... Qc3 {[%clk 0:00:10.7]} 45. Kh3
{[%clk 0:00:23.2]} 45... d4 {[%clk 0:00:11.1]} 46. Kg4 {[%clk 0:00:24.4]} 46...
d3 {[%clk 0:00:12.1]} 47. Qb8 {[%clk 0:00:24.5]} 47... d2 {[%clk 0:00:12.2]} 48.
Qd8 {[%clk 0:00:25.7]} 48... h5+ {[%clk 0:00:11.6]} 49. Kg5 {[%clk 0:00:26.6]}
49... Qxg3# {[%clk 0:00:07.3]} 0-1

[Event "*** Titled Tuesday 3|2 Blitz"]
[Site "Chess.com"]
[Date "2016.10.04"]
[Round "2"]
[White "BillieKimbah"]
[Black "dretch"]
[Result "0-1"]
[WhiteElo "2509"]
[BlackElo "2648"]
[TimeControl "180+2"]
[EndTime "17:22:45 PDT"]
[Termination "dretch won by checkmate"]

1. d4 {[%clk 0:02:58.7]} 1... d5 {[%clk 0:03:01]} 2. Bf4 {[%clk 0:02:57.7]} 2...
c5 {[%clk 0:03:01.3]} 3. e3 {[%clk 0:02:57.4]} 3... Nc6 {[%clk 0:03:01.5]} 4. c3
{[%clk 0:02:55.6]} 4... Nf6 {[%clk 0:03:02.1]} 5. Nf3 {[%clk 0:02:54.4]} 5...
Qb6 {[%clk 0:03:03.2]} 6. Qb3 {[%clk 0:02:46.9]} 6... c4 {[%clk 0:03:04.3]} 7.
Qc2 {[%clk 0:02:46.5]} 7... Bf5 {[%clk 0:03:05.4]} 8. Qc1 {[%clk 0:02:47.5]}
8... e6 {[%clk 0:03:06.7]} 9. Be2 {[%clk 0:02:43.8]} 9... Be7 {[%clk 0:03:07.8]}
10. h3 {[%clk 0:02:43.6]} 10... O-O {[%clk 0:03:08.6]} 11. Nbd2 {[%clk
0:02:43.5]} 11... Rfc8 {[%clk 0:03:09.4]} 12. O-O {[%clk 0:02:35]} 12... Qd8
{[%clk 0:03:10.1]} 13. Nh4 {[%clk 0:02:30.8]} 13... Be4 {[%clk 0:03:11.2]} 14.
Nhf3 {[%clk 0:02:29.3]} 14... b5 {[%clk 0:03:10.9]} 15. Nxe4 {[%clk 0:02:28.5]}
15... Nxe4 {[%clk 0:03:12.1]} 16. Nd2 {[%clk 0:02:27.6]} 16... Nd6 {[%clk
0:02:46.3]} 17. Bf3 {[%clk 0:02:26]} 17... f5 {[%clk 0:02:46.7]} 18. b3 {[%clk
0:02:03.3]} 18... Na5 {[%clk 0:02:37.3]} 19. b4 {[%clk 0:01:51.4]} 19... Nc6
{[%clk 0:02:38.2]} 20. a4 {[%clk 0:01:52.2]} 20... bxa4 {[%clk 0:02:36.6]} 21.
Bxd6 {[%clk 0:01:45.6]} 21... Bxd6 {[%clk 0:02:36.7]} 22. Rxa4 {[%clk
0:01:47.1]} 22... a5 {[%clk 0:02:38]} 23. bxa5 {[%clk 0:01:21.7]} 23... Rxa5
{[%clk 0:02:36.7]} 24. Rxa5 {[%clk 0:01:16.1]} 24... Qxa5 {[%clk 0:02:37.1]} 25.
Qc2 {[%clk 0:01:17.7]} 25... Na7 {[%clk 0:02:36.2]} 26. g4 {[%clk 0:01:16.4]}
26... g6 {[%clk 0:02:17.8]} 27. gxf5 {[%clk 0:01:17.2]} 27... gxf5 {[%clk
0:02:13.5]} 28. Kh1 {[%clk 0:01:18.3]} 28... Kh8 {[%clk 0:02:12.5]} 29. Rg1
{[%clk 0:01:14.5]} 29... Nb5 {[%clk 0:02:11]} 30. Nb1 {[%clk 0:01:13.9]} 30...
Qd8 {[%clk 0:02:06.5]} 31. Bxd5 {[%clk 0:00:51.5]} 31... exd5 {[%clk 0:02:05.4]}
32. Qxf5 {[%clk 0:00:53.1]} 32... Nc7 {[%clk 0:02:02.6]} 33. Nd2 {[%clk
0:00:48.7]} 33... Qf8 {[%clk 0:01:59.9]} 34. Qg4 {[%clk 0:00:44.7]} 34... Re8
{[%clk 0:01:59.3]} 35. Nf3 {[%clk 0:00:44.9]} 35... Re4 {[%clk 0:01:50.6]} 36.
Qg2 {[%clk 0:00:44.6]} 36... Re7 {[%clk 0:01:30.5]} 37. Qg4 {[%clk 0:00:31.9]}
37... Rg7 {[%clk 0:01:27.1]} 38. Qh5 {[%clk 0:00:32.6]} 38... Rxg1+ {[%clk
0:01:19.9]} 39. Kxg1 {[%clk 0:00:34.1]} 39... Qe8 {[%clk 0:01:18.4]} 40. Qh4
{[%clk 0:00:22]} 40... Qg6+ {[%clk 0:01:14.4]} 41. Kf1 {[%clk 0:00:22.7]} 41...
Qd3+ {[%clk 0:01:12.7]} 42. Kg2 {[%clk 0:00:24.3]} 42... Qg6+ {[%clk 0:01:13.8]}
43. Kf1 {[%clk 0:00:25.5]} 43... Ne6 {[%clk 0:01:14.3]} 44. Qg4 {[%clk
0:00:22.9]} 44... Kg7 {[%clk 0:01:04.4]} 45. Nh4 {[%clk 0:00:21.2]} 45... Qxg4
{[%clk 0:01:05.4]} 46. hxg4 {[%clk 0:00:22.7]} 46... Kf6 {[%clk 0:01:04.6]} 47.
f4 {[%clk 0:00:19.5]} 47... Bc7 {[%clk 0:00:57.7]} 48. Ke2 {[%clk 0:00:20.3]}
48... Ba5 {[%clk 0:00:55.5]} 49. Kd2 {[%clk 0:00:20.9]} 49... Nc7 {[%clk
0:00:56.9]} 50. g5+ {[%clk 0:00:12.3]} 50... Kf7 {[%clk 0:00:58]} 51. Kc2 {[%clk
0:00:03.2]} 51... Nb5 {[%clk 0:00:58.6]} 52. Nf3 {[%clk 0:00:03.9]} 52... Ke6
{[%clk 0:00:55.3]} 53. Ne5 {[%clk 0:00:03.6]} 53... Bxc3 {[%clk 0:00:50.8]} 54.
Nc6 {[%clk 0:00:04.1]} 54... Be1 {[%clk 0:00:48.3]} 55. Nd8+ {[%clk 0:00:04]}
55... Kd7 {[%clk 0:00:46.6]} 56. Nf7 {[%clk 0:00:05.3]} 56... Ke7 {[%clk
0:00:46.2]} 57. Ne5 {[%clk 0:00:05.9]} 57... Ke6 {[%clk 0:00:47.5]} 58. Nf3
{[%clk 0:00:06.4]} 58... Bb4 {[%clk 0:00:44.6]} 59. Nh4 {[%clk 0:00:07.4]} 59...
Nd6 {[%clk 0:00:42.1]} 60. Nf3 {[%clk 0:00:07.6]} 60... Nf5 {[%clk 0:00:42.5]}
61. Ne5 {[%clk 0:00:08.2]} 61... Nxe3+ {[%clk 0:00:43.3]} 62. Kc1 {[%clk
0:00:09.3]} 62... c3 {[%clk 0:00:39.5]} 63. Nc6 {[%clk 0:00:09]} 63... Ba3+
{[%clk 0:00:40.4]} 64. Kb1 {[%clk 0:00:09.6]} 64... c2+ {[%clk 0:00:41.6]} 65.
Ka2 {[%clk 0:00:11.3]} 65... c1=Q {[%clk 0:00:42.3]} 66. Nd8+ {[%clk 0:00:13]}
66... Kd7 {[%clk 0:00:42.7]} 67. Nb7 {[%clk 0:00:14]} 67... Qb2# {[%clk
0:00:43.1]} 0-1

[Event "*** Titled Tuesday 3|2 Blitz"]
[Site "Chess.com"]
[Date "2016.10.04"]
[Round "2"]
[White "chito89"]
[Black "Mornar1951"]
[Result "1-0"]
[WhiteElo "2566"]
[BlackElo "2578"]
[TimeControl "180+2"]
[EndTime "17:22:48 PDT"]
[Termination "chito89 won by resignation"]

1. e4 {[%clk 0:03:02]} 1... e5 {[%clk 0:02:58.9]} 2. Nf3 {[%clk 0:03:02.7]} 2...
Nf6 {[%clk 0:03:00.5]} 3. Nxe5 {[%clk 0:02:55.4]} 3... d6 {[%clk 0:03:01.9]} 4.
Nf3 {[%clk 0:02:56.4]} 4... Nxe4 {[%clk 0:03:03.5]} 5. Bd3 {[%clk 0:02:57.2]}
5... Nf6 {[%clk 0:03:03.2]} 6. O-O {[%clk 0:02:57.3]} 6... Be7 {[%clk
0:03:04.5]} 7. Re1 {[%clk 0:02:48.8]} 7... O-O {[%clk 0:03:04.4]} 8. c3 {[%clk
0:02:44.2]} 8... Bg4 {[%clk 0:03:03.5]} 9. Bc2 {[%clk 0:02:45.1]} 9... Re8
{[%clk 0:03:02.4]} 10. d4 {[%clk 0:02:46.3]} 10... Bf8 {[%clk 0:02:58.1]} 11.
Be3 {[%clk 0:02:34.4]} 11... Nbd7 {[%clk 0:02:50.4]} 12. Nbd2 {[%clk 0:02:35.8]}
12... Nb6 {[%clk 0:02:43.5]} 13. h3 {[%clk 0:02:28.7]} 13... Bh5 {[%clk
0:02:42.9]} 14. c4 {[%clk 0:02:29.8]} 14... c6 {[%clk 0:02:11.4]} 15. Bd3 {[%clk
0:02:28.1]} 15... d5 {[%clk 0:02:00.9]} 16. c5 {[%clk 0:02:26.1]} 16... Nbd7
{[%clk 0:02:02]} 17. Qc2 {[%clk 0:02:21.9]} 17... Bg6 {[%clk 0:02:00.2]} 18.
Bxg6 {[%clk 0:02:18.4]} 18... hxg6 {[%clk 0:02:02.1]} 19. Bf4 {[%clk 0:02:12.1]}
19... Qa5 {[%clk 0:01:46.6]} 20. b4 {[%clk 0:01:55.4]} 20... Qa6 {[%clk
0:01:43.4]} 21. Be3 {[%clk 0:01:42.1]} 21... b6 {[%clk 0:01:35.3]} 22. a4 {[%clk
0:01:40.1]} 22... Ne4 {[%clk 0:01:23.9]} 23. b5 {[%clk 0:01:33.1]} 23... Qb7
{[%clk 0:01:17.6]} 24. Rab1 {[%clk 0:01:03.5]} 24... bxc5 {[%clk 0:01:13.1]} 25.
dxc5 {[%clk 0:01:00.4]} 25... Ndxc5 {[%clk 0:00:54.3]} 26. Nxe4 {[%clk 0:01:01]}
26... dxe4 {[%clk 0:00:51.9]} 27. Ng5 {[%clk 0:01:02.5]} 27... Nd3 {[%clk
0:00:36.3]} 28. bxc6 {[%clk 0:01:03.4]} 28... Nxe1 {[%clk 0:00:36.2]} 29. cxb7
{[%clk 0:01:00.9]} 29... Nxc2 {[%clk 0:00:37.3]} 30. bxa8=Q {[%clk 0:00:57.7]}
30... Rxa8 {[%clk 0:00:39.2]} 31. Rb7 {[%clk 0:00:55.5]} 31... Nxe3 {[%clk
0:00:38.5]} 32. fxe3 {[%clk 0:00:57.1]} 32... Bc5 {[%clk 0:00:28.5]} 33. Kf2
{[%clk 0:00:57.3]} 33... Rd8 {[%clk 0:00:23.9]} 34. Nxe4 {[%clk 0:00:45]} 34...
Bb6 {[%clk 0:00:23.9]} 35. Ng5 {[%clk 0:00:46.4]} 35... Rd5 {[%clk 0:00:13.9]}
36. Rb8+ {[%clk 0:00:42.9]} 36... Rd8 {[%clk 0:00:14.8]} 37. Rb7 {[%clk
0:00:41.1]} 37... Rd5 {[%clk 0:00:16]} 38. h4 {[%clk 0:00:38.8]} 38... f6 {[%clk
0:00:15.2]} 39. Ne6 {[%clk 0:00:37.2]} 39... Bxe3+ {[%clk 0:00:16.3]} 40. Kf3
{[%clk 0:00:36.9]} 40... Bh6 {[%clk 0:00:16.1]} 41. Rxa7 {[%clk 0:00:30.9]}
41... Re5 {[%clk 0:00:17.2]} 42. Ra8+ {[%clk 0:00:30.8]} 42... Kf7 {[%clk
0:00:17.7]} 43. Nd8+ {[%clk 0:00:32.4]} 43... Kf8 {[%clk 0:00:15.8]} 44. Nc6+
{[%clk 0:00:32.5]} 44... Re8 {[%clk 0:00:16.9]} 45. Rxe8+ {[%clk 0:00:30.3]}
45... Kxe8 {[%clk 0:00:18.8]} 46. Ke4 {[%clk 0:00:31.9]} 46... Kd7 {[%clk
0:00:20]} 47. Kd5 {[%clk 0:00:33.5]} 47... Be3 {[%clk 0:00:20]} 48. g4 {[%clk
0:00:28.9]} 48... Bf2 {[%clk 0:00:19.5]} 49. h5 {[%clk 0:00:26.9]} 49... f5
{[%clk 0:00:20.8]} 50. hxg6 {[%clk 0:00:24.3]} 50... fxg4 {[%clk 0:00:21.4]} 51.
Ne5+ {[%clk 0:00:26]} 51... Ke7 {[%clk 0:00:22.5]} 52. Nxg4 {[%clk 0:00:26.6]}
52... Ba7 {[%clk 0:00:23.2]} 53. a5 {[%clk 0:00:26.7]} 53... Bg1 {[%clk
0:00:22.7]} 54. a6 {[%clk 0:00:27.2]} 54... Ba7 {[%clk 0:00:23.1]} 55. Kc6
{[%clk 0:00:24]} 55... Ke6 {[%clk 0:00:22.8]} 56. Kb7 {[%clk 0:00:24.1]} 56...
Bc5 {[%clk 0:00:22]} 57. Nh2 {[%clk 0:00:13]} 57... Kf5 {[%clk 0:00:21.9]} 58.
Nf3 {[%clk 0:00:14.6]} 58... Kxg6 {[%clk 0:00:22.5]} 59. Ne5+ {[%clk 0:00:16.2]}
59... Kf5 {[%clk 0:00:22.9]} 60. Nd7 {[%clk 0:00:17.9]} 60... g5 {[%clk
0:00:22.2]} 61. Nxc5 {[%clk 0:00:18.5]} 61... g4 {[%clk 0:00:24.1]} 62. a7
{[%clk 0:00:19.6]} 62... g3 {[%clk 0:00:26]} 63. a8=Q {[%clk 0:00:20.3]} 63...
g2 {[%clk 0:00:27.9]} 64. Qg8 {[%clk 0:00:21.4]} 1-0